[Event "*** Titled Tuesday Blitz"]
[Site "Chess.com"]
[Date "2019.03.05"]
[Round "2"]
[White "NeverEverForever1990"]
[Black "TST2014"]
[Result "0-1"]
[WhiteElo "2340"]
[BlackElo "2496"]
[TimeControl "180+2"]
[EndTime "13:23:57 PST"]
[Termination "TST2014 won by resignation"]

1. Nf3 {[%clk 0:03:01.9]} 1... Nf6 {[%clk 0:02:59.5]} 2. d4 {[%clk 0:02:38.8]}
2... g6 {[%clk 0:02:59]} 3. g3 {[%clk 0:02:36.3]} 3... Bg7 {[%clk 0:02:59.3]} 4.
Bg2 {[%clk 0:02:38.2]} 4... O-O {[%clk 0:03:00.5]} 5. O-O {[%clk 0:02:39.2]}
5... d6 {[%clk 0:03:01.9]} 6. b3 {[%clk 0:02:36]} 6... c5 {[%clk 0:02:58.8]} 7.
c4 {[%clk 0:02:31.3]} 7... Nc6 {[%clk 0:02:47.6]} 8. Bb2 {[%clk 0:02:30]} 8...
Ne4 {[%clk 0:02:44.8]} 9. Nbd2 {[%clk 0:02:25.4]} 9... Bf5 {[%clk 0:02:38.9]}
10. e3 {[%clk 0:02:21.2]} 10... Qa5 {[%clk 0:02:33.9]} 11. Nxe4 {[%clk 0:01:48]}
11... Bxe4 {[%clk 0:02:33.1]} 12. Qe2 {[%clk 0:01:49.4]} 12... cxd4 {[%clk
0:02:00.8]} 13. Nxd4 {[%clk 0:01:43.7]} 13... Bxg2 {[%clk 0:01:55.6]} 14. Kxg2
{[%clk 0:01:45.6]} 14... Nxd4 {[%clk 0:01:49.4]} 15. Bxd4 {[%clk 0:01:46.6]}
15... e5 {[%clk 0:01:49.4]} 16. Bb2 {[%clk 0:01:45.2]} 16... d5 {[%clk
0:01:50.6]} 17. cxd5 {[%clk 0:01:44.7]} 17... Qxd5+ {[%clk 0:01:51.1]} 18. e4
{[%clk 0:01:46.2]} 18... Qa5 {[%clk 0:01:47.4]} 19. Rfd1 {[%clk 0:01:45.8]}
19... Rfd8 {[%clk 0:01:40.6]} 20. a3 {[%clk 0:01:42]} 20... Qb6 {[%clk
0:01:38.2]} 21. Rxd8+ {[%clk 0:01:38.5]} 21... Rxd8 {[%clk 0:01:37.9]} 22. Rd1
{[%clk 0:01:39.6]} 22... h5 {[%clk 0:01:36.5]} 23. Rd3 {[%clk 0:01:22.7]} 23...
Kh7 {[%clk 0:01:35]} 24. Qd1 {[%clk 0:01:21.3]} 24... Rxd3 {[%clk 0:01:23.3]}
25. Qxd3 {[%clk 0:01:23.2]} 25... Qc6 {[%clk 0:01:19.9]} 26. Kf3 {[%clk
0:00:55.1]} 26... f5 {[%clk 0:01:16.8]} 27. Ke2 {[%clk 0:00:44.9]} 27... fxe4
{[%clk 0:01:15.4]} 28. Qc4 {[%clk 0:00:46.1]} 28... Qb6 {[%clk 0:00:49.8]} 29.
b4 {[%clk 0:00:37.4]} 29... e3 {[%clk 0:00:35]} 30. fxe3 {[%clk 0:00:34]} 30...
Qf6 {[%clk 0:00:31.5]} 31. Qe4 {[%clk 0:00:30.8]} 31... Qf7 {[%clk 0:00:30.9]}
32. h3 {[%clk 0:00:14.3]} 32... Qa2 {[%clk 0:00:30.8]} 33. Qc2 {[%clk
0:00:10.3]} 33... e4 {[%clk 0:00:29.3]} 34. Qxe4 {[%clk 0:00:11.6]} 34... Qxb2+
{[%clk 0:00:28.9]} 35. Kf3 {[%clk 0:00:12.7]} 35... Qf6+ {[%clk 0:00:28.7]} 36.
Kg2 {[%clk 0:00:13.2]} 36... Qc6 {[%clk 0:00:29.5]} 37. Qxc6 {[%clk 0:00:14.3]}
37... bxc6 {[%clk 0:00:30.8]} 38. Kf3 {[%clk 0:00:16.2]} 38... a6 {[%clk
0:00:30.2]} 39. Ke4 {[%clk 0:00:17.3]} 39... Bb2 {[%clk 0:00:31.2]} 40. a4
{[%clk 0:00:17.9]} 40... Bc3 {[%clk 0:00:32.2]} 41. b5 {[%clk 0:00:18.7]} 41...
cxb5 {[%clk 0:00:33.4]} 42. axb5 {[%clk 0:00:20.6]} 42... axb5 {[%clk
0:00:34.7]} 43. Kd5 {[%clk 0:00:22.5]} 43... b4 {[%clk 0:00:35.8]} 44. Kc4
{[%clk 0:00:23.9]} 44... Kg7 {[%clk 0:00:37.2]} 45. g4 {[%clk 0:00:25.5]} 45...
h4 {[%clk 0:00:38.1]} 46. g5 {[%clk 0:00:25.9]} 46... Kf7 {[%clk 0:00:39]} 47.
e4 {[%clk 0:00:26.8]} 47... Ke6 {[%clk 0:00:40.2]} 48. Kb3 {[%clk 0:00:28.7]}
0-1

[Event "*** Titled Tuesday Blitz"]
[Site "Chess.com"]
[Date "2019.03.05"]
[Round "2"]
[White "ahkashefi2800"]
[Black "JSMastropiero"]
[Result "1-0"]
[WhiteElo "2235"]
[BlackElo "2251"]
[TimeControl "180+2"]
[EndTime "13:23:59 PST"]
[Termination "ahkashefi2800 won by checkmate"]

1. d4 {[%clk 0:03:01.9]} 1... Nf6 {[%clk 0:02:56.6]} 2. Nf3 {[%clk 0:03:02.4]}
2... d5 {[%clk 0:02:53.5]} 3. Bf4 {[%clk 0:03:02.8]} 3... e6 {[%clk 0:02:52.3]}
4. e3 {[%clk 0:03:03.8]} 4... Bd6 {[%clk 0:02:53.1]} 5. Bg3 {[%clk 0:03:04.6]}
5... O-O {[%clk 0:02:53.4]} 6. Nbd2 {[%clk 0:03:05.3]} 6... c5 {[%clk
0:02:49.6]} 7. c3 {[%clk 0:03:06.1]} 7... b6 {[%clk 0:02:49.7]} 8. Bd3 {[%clk
0:03:06.1]} 8... Bb7 {[%clk 0:02:46]} 9. O-O {[%clk 0:03:06.8]} 9... Nc6 {[%clk
0:02:46.9]} 10. Ne5 {[%clk 0:03:07.2]} 10... Ne7 {[%clk 0:02:39.5]} 11. f4
{[%clk 0:03:07.9]} 11... Nf5 {[%clk 0:02:39.8]} 12. Bf2 {[%clk 0:03:08.8]} 12...
Be7 {[%clk 0:02:40.4]} 13. Qf3 {[%clk 0:03:04.8]} 13... Nd6 {[%clk 0:02:38.4]}
14. Ng4 {[%clk 0:03:02.3]} 14... Nfe4 {[%clk 0:02:31.6]} 15. Rad1 {[%clk
0:02:57.1]} 15... Rc8 {[%clk 0:02:17.4]} 16. Bg3 {[%clk 0:02:54.1]} 16... c4
{[%clk 0:02:02.5]} 17. Bb1 {[%clk 0:02:54.5]} 17... b5 {[%clk 0:02:02.3]} 18.
Nf2 {[%clk 0:02:55.2]} 18... f5 {[%clk 0:01:59]} 19. Nfxe4 {[%clk 0:02:35.3]}
19... dxe4 {[%clk 0:01:53.3]} 20. Qe2 {[%clk 0:02:32.4]} 20... Bd5 {[%clk
0:01:52.9]} 21. Be1 {[%clk 0:02:29]} 21... a5 {[%clk 0:01:49.1]} 22. g4 {[%clk
0:02:28.9]} 22... Rb8 {[%clk 0:01:46.3]} 23. g5 {[%clk 0:02:28.3]} 23... b4
{[%clk 0:01:41.9]} 24. h4 {[%clk 0:02:21.8]} 24... a4 {[%clk 0:01:17.4]} 25.
cxb4 {[%clk 0:02:21.3]} 25... Rxb4 {[%clk 0:01:16.3]} 26. b3 {[%clk 0:02:05.1]}
26... axb3 {[%clk 0:01:09.1]} 27. Nxb3 {[%clk 0:02:04.1]} 27... Nb5 {[%clk
0:00:42.5]} 28. Bxb4 {[%clk 0:02:00]} 28... Bxb4 {[%clk 0:00:43]} 29. Nc5 {[%clk
0:01:58.5]} 29... Nc3 {[%clk 0:00:39]} 30. Qb2 {[%clk 0:01:45.1]} 30... Nxd1
{[%clk 0:00:36.8]} 31. Rxd1 {[%clk 0:01:47]} 31... Bxc5 {[%clk 0:00:25.8]} 32.
dxc5 {[%clk 0:01:47.7]} 32... Qc7 {[%clk 0:00:27.1]} 33. h5 {[%clk 0:01:18.8]}
33... Qxc5 {[%clk 0:00:23.4]} 34. Qc3 {[%clk 0:01:20.2]} 34... Qe7 {[%clk
0:00:12.9]} 35. a4 {[%clk 0:01:19.2]} 35... Rb8 {[%clk 0:00:12.1]} 36. Ba2
{[%clk 0:01:19.6]} 36... Qb4 {[%clk 0:00:12.3]} 37. Qe5 {[%clk 0:01:17.8]} 37...
Rc8 {[%clk 0:00:09.9]} 38. h6 {[%clk 0:01:18.5]} 38... Qe7 {[%clk 0:00:10.8]}
39. Kf2 {[%clk 0:01:01.4]} 39... Qc7 {[%clk 0:00:11.5]} 40. Qc3 {[%clk
0:01:01.3]} 40... e5 {[%clk 0:00:07.3]} 41. Rxd5 {[%clk 0:00:58]} 41... exf4
{[%clk 0:00:08]} 42. Bxc4 {[%clk 0:00:42.3]} 42... fxe3+ {[%clk 0:00:08.7]} 43.
Kg2 {[%clk 0:00:43]} 43... Qxc4 {[%clk 0:00:09.3]} 44. Qxg7# {[%clk 0:00:43.5]}
1-0

[Event "*** Titled Tuesday Blitz"]
[Site "Chess.com"]
[Date "2019.03.05"]
[Round "2"]
[White "Man-Chuk"]
[Black "TrickyTrapChess"]
[Result "1-0"]
[WhiteElo "2770"]
[BlackElo "2304"]
[TimeControl "180+2"]
[EndTime "13:23:59 PST"]
[Termination "Man-Chuk won by checkmate"]

1. Nf3 {[%clk 0:03:01.9]} 1... c5 {[%clk 0:02:49.7]} 2. g3 {[%clk 0:03:01]} 2...
g6 {[%clk 0:02:49.3]} 3. Bg2 {[%clk 0:03:02.1]} 3... Bg7 {[%clk 0:02:50.4]} 4.
O-O {[%clk 0:03:04]} 4... Nc6 {[%clk 0:02:51.2]} 5. c4 {[%clk 0:03:05.5]} 5...
e6 {[%clk 0:02:51.1]} 6. Nc3 {[%clk 0:03:06.8]} 6... Nge7 {[%clk 0:02:52.1]} 7.
d4 {[%clk 0:03:06.6]} 7... cxd4 {[%clk 0:02:47]} 8. Nb5 {[%clk 0:03:05.5]} 8...
d5 {[%clk 0:02:26.8]} 9. cxd5 {[%clk 0:02:44.3]} 9... Nxd5 {[%clk 0:02:26.9]}
10. Nfxd4 {[%clk 0:02:27.9]} 10... Nxd4 {[%clk 0:02:21.3]} 11. Nxd4 {[%clk
0:02:29.8]} 11... O-O {[%clk 0:02:21.1]} 12. e4 {[%clk 0:02:25.9]} 12... Qb6
{[%clk 0:02:06.2]} 13. Nb3 {[%clk 0:02:12]} 13... Nb4 {[%clk 0:01:56.9]} 14. Be3
{[%clk 0:02:09.6]} 14... Qb5 {[%clk 0:01:39.5]} 15. a4 {[%clk 0:02:09.3]} 15...
Qc4 {[%clk 0:01:02.6]} 16. Rc1 {[%clk 0:02:09.3]} 16... Qa6 {[%clk 0:00:59.5]}
17. Bc5 {[%clk 0:02:10.2]} 17... Qxa4 {[%clk 0:00:58.1]} 18. Bxf8 {[%clk
0:01:48.6]} 18... Bxf8 {[%clk 0:01:00]} 19. Nd4 {[%clk 0:01:30.8]} 19... Qa6
{[%clk 0:00:46.1]} 20. Qb3 {[%clk 0:01:15.2]} 20... Nd3 {[%clk 0:00:20.3]} 21.
Ra1 {[%clk 0:01:03.5]} 21... Nc5 {[%clk 0:00:12.2]} 22. Qc3 {[%clk 0:00:59.1]}
22... Qb6 {[%clk 0:00:12.5]} 23. e5 {[%clk 0:00:34.3]} 23... Bd7 {[%clk
0:00:13]} 24. b4 {[%clk 0:00:35.2]} 24... Na6 {[%clk 0:00:10]} 25. b5 {[%clk
0:00:20.6]} 25... Nc7 {[%clk 0:00:11.3]} 26. Rfb1 {[%clk 0:00:16.9]} 26... Bc5
{[%clk 0:00:06.8]} 27. Ra4 {[%clk 0:00:12.7]} 27... a6 {[%clk 0:00:06.6]} 28.
Rc4 {[%clk 0:00:13.8]} 28... axb5 {[%clk 0:00:07.3]} 29. Rxc5 {[%clk 0:00:15]}
29... Na6 {[%clk 0:00:07.9]} 30. Rcxb5 {[%clk 0:00:11.5]} 30... Qd8 {[%clk
0:00:07.5]} 31. Rxb7 {[%clk 0:00:12.1]} 31... Rc8 {[%clk 0:00:07.2]} 32. Qd2
{[%clk 0:00:09.3]} 32... Nc5 {[%clk 0:00:08.3]} 33. Ra7 {[%clk 0:00:10.5]} 33...
Be8 {[%clk 0:00:07.7]} 34. Nf3 {[%clk 0:00:10.7]} 34... Bd7 {[%clk 0:00:06.2]}
35. Qh6 {[%clk 0:00:11.3]} 35... Qe8 {[%clk 0:00:07.3]} 36. Ng5 {[%clk
0:00:11.8]} 36... Bc6 {[%clk 0:00:04]} 37. Qxh7+ {[%clk 0:00:11.6]} 37... Kf8
{[%clk 0:00:05.4]} 38. Qh8# {[%clk 0:00:13.5]} 1-0

[Event "*** Titled Tuesday Blitz"]
[Site "Chess.com"]
[Date "2019.03.05"]
[Round "2"]
[White "fish7728"]
[Black "vladimir_petrov"]
[Result "1-0"]
[WhiteElo "2260"]
[BlackElo "2395"]
[TimeControl "180+2"]
[EndTime "13:24:08 PST"]
[Termination "fish7728 won on time"]

1. d4 {[%clk 0:03:00.4]} 1... Nf6 {[%clk 0:03:00.4]} 2. c4 {[%clk 0:02:58.3]}
2... e6 {[%clk 0:03:01.7]} 3. Nc3 {[%clk 0:02:57.2]} 3... Bb4 {[%clk 0:03:01.3]}
4. f3 {[%clk 0:02:58]} 4... d5 {[%clk 0:02:56.1]} 5. a3 {[%clk 0:02:51.4]} 5...
Bxc3+ {[%clk 0:02:52.5]} 6. bxc3 {[%clk 0:02:52.2]} 6... c5 {[%clk 0:02:53.2]}
7. e3 {[%clk 0:02:52.5]} 7... O-O {[%clk 0:02:45.7]} 8. Bd3 {[%clk 0:02:46.8]}
8... Nc6 {[%clk 0:02:41.6]} 9. Ne2 {[%clk 0:02:44.9]} 9... dxc4 {[%clk
0:02:31.9]} 10. Bxc4 {[%clk 0:02:45.1]} 10... e5 {[%clk 0:02:33]} 11. d5 {[%clk
0:02:31.8]} 11... Na5 {[%clk 0:02:33.5]} 12. Ba2 {[%clk 0:02:31.7]} 12... c4
{[%clk 0:02:32.8]} 13. e4 {[%clk 0:02:30.4]} 13... Qb6 {[%clk 0:02:16.2]} 14.
Rb1 {[%clk 0:02:29.6]} 14... Qc5 {[%clk 0:02:17.1]} 15. Qa4 {[%clk 0:02:13.1]}
15... Bd7 {[%clk 0:01:50.7]} 16. Qb4 {[%clk 0:02:13.2]} 16... Rac8 {[%clk
0:01:48]} 17. Qxc5 {[%clk 0:02:07.8]} 17... Rxc5 {[%clk 0:01:47.9]} 18. Be3
{[%clk 0:02:06.6]} 18... Rcc8 {[%clk 0:01:42.2]} 19. Bxa7 {[%clk 0:01:59.8]}
19... Ba4 {[%clk 0:01:38.9]} 20. Rb4 {[%clk 0:01:28.3]} 20... b5 {[%clk
0:01:34.8]} 21. Rb2 {[%clk 0:01:06.6]} 21... Nd7 {[%clk 0:01:29.1]} 22. O-O
{[%clk 0:01:02.8]} 22... Nc5 {[%clk 0:01:23]} 23. Bxc5 {[%clk 0:01:00.5]} 23...
Rxc5 {[%clk 0:01:24.1]} 24. f4 {[%clk 0:00:56.1]} 24... f6 {[%clk 0:01:22.4]}
25. Ng3 {[%clk 0:00:48.3]} 25... g6 {[%clk 0:01:16.6]} 26. Rbf2 {[%clk
0:00:47.6]} 26... Rcc8 {[%clk 0:00:40.9]} 27. Bb1 {[%clk 0:00:36.4]} 27... Nb3
{[%clk 0:00:35.7]} 28. Bc2 {[%clk 0:00:29.4]} 28... Kg7 {[%clk 0:00:27.6]} 29.
h4 {[%clk 0:00:29]} 29... exf4 {[%clk 0:00:24.3]} 30. Rxf4 {[%clk 0:00:26.6]}
30... Ra8 {[%clk 0:00:26.1]} 31. h5 {[%clk 0:00:24.1]} 31... Nc5 {[%clk
0:00:26.6]} 32. hxg6 {[%clk 0:00:22.2]} 32... Bxc2 {[%clk 0:00:25.4]} 33. gxh7
{[%clk 0:00:20.6]} 33... Kxh7 {[%clk 0:00:27.2]} 34. Kf2 {[%clk 0:00:17.3]}
34... Rxa3 {[%clk 0:00:23.8]} 35. Rg4 {[%clk 0:00:17.2]} 35... Nd3+ {[%clk
0:00:08.8]} 36. Ke3 {[%clk 0:00:12.3]} 1-0

[Event "*** Titled Tuesday Blitz"]
[Site "Chess.com"]
[Date "2019.03.05"]
[Round "2"]
[White "jamengrand"]
[Black "chenrip"]
[Result "0-1"]
[WhiteElo "2160"]
[BlackElo "2332"]
[TimeControl "180+2"]
[EndTime "13:24:09 PST"]
[Termination "chenrip won by checkmate"]

1. c4 {[%clk 0:02:54.6]} 1... c5 {[%clk 0:03:00.6]} 2. b3 {[%clk 0:02:55]} 2...
b6 {[%clk 0:03:01.8]} 3. Bb2 {[%clk 0:02:55.4]} 3... Bb7 {[%clk 0:03:03.7]} 4.
Nf3 {[%clk 0:02:56.1]} 4... Nc6 {[%clk 0:03:04.8]} 5. g3 {[%clk 0:02:57.3]} 5...
Nd4 {[%clk 0:03:03.8]} 6. Bg2 {[%clk 0:02:58.4]} 6... Nxf3+ {[%clk 0:03:04.7]}
7. Bxf3 {[%clk 0:02:59.2]} 7... Bxf3 {[%clk 0:03:05.6]} 8. exf3 {[%clk
0:03:00.5]} 8... d5 {[%clk 0:03:06.7]} 9. cxd5 {[%clk 0:02:53.2]} 9... Qxd5
{[%clk 0:03:07]} 10. O-O {[%clk 0:02:54.3]} 10... Nf6 {[%clk 0:02:59.8]} 11. Nc3
{[%clk 0:02:53.2]} 11... Qc6 {[%clk 0:03:00.9]} 12. Ne4 {[%clk 0:02:48.8]} 12...
Nxe4 {[%clk 0:03:01.1]} 13. fxe4 {[%clk 0:02:50.2]} 13... Qxe4 {[%clk
0:03:01.8]} 14. Re1 {[%clk 0:02:50.6]} 14... Qc6 {[%clk 0:03:02.4]} 15. d4
{[%clk 0:02:41.2]} 15... O-O-O {[%clk 0:02:59.5]} 16. Qc2 {[%clk 0:02:41.7]}
16... f6 {[%clk 0:02:48.8]} 17. dxc5 {[%clk 0:02:42.6]} 17... e5 {[%clk
0:02:49.2]} 18. Rac1 {[%clk 0:02:42.5]} 18... Kb7 {[%clk 0:02:46.8]} 19. cxb6
{[%clk 0:02:26]} 19... Qxc2 {[%clk 0:02:47]} 20. Rxc2 {[%clk 0:02:27.1]} 20...
axb6 {[%clk 0:02:46.7]} 21. f4 {[%clk 0:02:27.2]} 21... exf4 {[%clk 0:02:46.9]}
22. gxf4 {[%clk 0:02:25.2]} 22... Bc5+ {[%clk 0:02:46.4]} 23. Kg2 {[%clk
0:02:14.4]} 23... Rhe8 {[%clk 0:02:45.8]} 24. Rce2 {[%clk 0:02:15.2]} 24...
Rxe2+ {[%clk 0:02:45.9]} 25. Rxe2 {[%clk 0:02:17.1]} 25... Rd3 {[%clk 0:02:37]}
26. h4 {[%clk 0:02:03]} 26... Kc6 {[%clk 0:02:34.8]} 27. h5 {[%clk 0:02:03.4]}
27... h6 {[%clk 0:02:35.5]} 28. Rc2 {[%clk 0:01:26.5]} 28... Kd5 {[%clk
0:02:23.8]} 29. Bc1 {[%clk 0:01:13.7]} 29... Ke4 {[%clk 0:02:13.4]} 30. Rc4+
{[%clk 0:01:03.5]} 30... Kf5 {[%clk 0:02:13.3]} 31. b4 {[%clk 0:00:58]} 31...
Be3 {[%clk 0:02:09.4]} 32. Bxe3 {[%clk 0:00:47.3]} 32... Rxe3 {[%clk 0:02:10.5]}
33. a4 {[%clk 0:00:47.2]} 33... Ra3 {[%clk 0:02:04]} 34. b5 {[%clk 0:00:48]}
34... Kg4 {[%clk 0:02:02.9]} 35. Rc7 {[%clk 0:00:19.5]} 35... Ra2+ {[%clk
0:01:50.8]} 36. Kf1 {[%clk 0:00:19.5]} 36... Kxf4 {[%clk 0:01:52.2]} 37. Rxg7
{[%clk 0:00:19.4]} 37... Rxa4 {[%clk 0:01:49.7]} 38. Rb7 {[%clk 0:00:20.4]}
38... Kf3 {[%clk 0:01:21.9]} 39. Kg1 {[%clk 0:00:21.3]} 39... Rg4+ {[%clk
0:01:16.1]} 40. Kh2 {[%clk 0:00:21.6]} 40... Rh4+ {[%clk 0:01:11.6]} 41. Kg1
{[%clk 0:00:22.4]} 41... Rxh5 {[%clk 0:01:13]} 42. Rxb6 {[%clk 0:00:23.5]} 42...
Rf5 {[%clk 0:01:11]} 43. Ra6 {[%clk 0:00:21.4]} 43... Kg3 {[%clk 0:01:10.1]} 44.
Ra3+ {[%clk 0:00:20.2]} 44... Kg4 {[%clk 0:01:10.8]} 45. Rb3 {[%clk 0:00:21.6]}
45... Re5 {[%clk 0:01:09.9]} 46. b6 {[%clk 0:00:22.4]} 46... Re8 {[%clk
0:01:11.2]} 47. b7 {[%clk 0:00:23.5]} 47... Rb8 {[%clk 0:01:12.6]} 48. Kf2
{[%clk 0:00:23.7]} 48... Kf4 {[%clk 0:01:13.6]} 49. Rb4+ {[%clk 0:00:24.4]}
49... Ke5 {[%clk 0:01:15]} 50. Kf3 {[%clk 0:00:25.8]} 50... h5 {[%clk
0:01:13.6]} 51. Rh4 {[%clk 0:00:26.4]} 51... Rxb7 {[%clk 0:01:13.6]} 52. Rxh5+
{[%clk 0:00:27.5]} 52... f5 {[%clk 0:01:15.1]} 53. Rh6 {[%clk 0:00:27.5]} 53...
Rb3+ {[%clk 0:01:16.5]} 54. Kf2 {[%clk 0:00:28.6]} 54... Ke4 {[%clk 0:01:17]}
55. Ra6 {[%clk 0:00:27.6]} 55... Rb2+ {[%clk 0:01:17.1]} 56. Kf1 {[%clk
0:00:28.8]} 56... Kf3 {[%clk 0:01:17.2]} 57. Ra3+ {[%clk 0:00:29.7]} 57... Kg4
{[%clk 0:01:18.6]} 58. Kg1 {[%clk 0:00:30.8]} 58... f4 {[%clk 0:01:19.5]} 59.
Ra8 {[%clk 0:00:30.1]} 59... Kg3 {[%clk 0:01:20]} 60. Rf8 {[%clk 0:00:24]} 60...
Rb1# {[%clk 0:01:19.7]} 0-1

[Event "*** Titled Tuesday Blitz"]
[Site "Chess.com"]
[Date "2019.03.05"]
[Round "2"]
[White "ProstoIgrok"]
[Black "severomorskij"]
[Result "0-1"]
[WhiteElo "2679"]
[BlackElo "2698"]
[TimeControl "180+2"]
[EndTime "13:24:15 PST"]
[Termination "severomorskij won by resignation"]

1. e4 {[%clk 0:02:59.6]} 1... c5 {[%clk 0:03:01]} 2. Nf3 {[%clk 0:03:00.8]} 2...
Nc6 {[%clk 0:03:02.3]} 3. d4 {[%clk 0:03:02.4]} 3... cxd4 {[%clk 0:03:03.5]} 4.
Nxd4 {[%clk 0:03:04.3]} 4... Nf6 {[%clk 0:03:05.1]} 5. Nc3 {[%clk 0:03:05.5]}
5... e5 {[%clk 0:03:06.2]} 6. Ndb5 {[%clk 0:03:07.1]} 6... d6 {[%clk 0:03:07.5]}
7. Bg5 {[%clk 0:03:07.8]} 7... a6 {[%clk 0:03:08.1]} 8. Na3 {[%clk 0:03:08.9]}
8... b5 {[%clk 0:03:09.6]} 9. Nd5 {[%clk 0:03:10.3]} 9... Be7 {[%clk 0:03:10.7]}
10. Bxf6 {[%clk 0:03:11.7]} 10... Bxf6 {[%clk 0:03:12.2]} 11. c4 {[%clk
0:03:13.4]} 11... b4 {[%clk 0:03:12.6]} 12. Nc2 {[%clk 0:03:14.6]} 12... O-O
{[%clk 0:03:13.7]} 13. g3 {[%clk 0:03:16.2]} 13... Bg5 {[%clk 0:03:13.7]} 14. h4
{[%clk 0:03:17.2]} 14... Bh6 {[%clk 0:03:14.6]} 15. Bh3 {[%clk 0:03:18.7]} 15...
Be6 {[%clk 0:03:14.9]} 16. Kf1 {[%clk 0:03:16.8]} 16... a5 {[%clk 0:03:15.8]}
17. Qd3 {[%clk 0:03:14.3]} 17... a4 {[%clk 0:03:15.9]} 18. Kg2 {[%clk
0:03:12.4]} 18... Qb8 {[%clk 0:03:10.9]} 19. b3 {[%clk 0:03:03.4]} 19... Kh8
{[%clk 0:03:07.4]} 20. Rag1 {[%clk 0:02:29.3]} 20... Ra5 {[%clk 0:02:55.8]} 21.
g4 {[%clk 0:02:27.1]} 21... Bf4 {[%clk 0:02:34.2]} 22. g5 {[%clk 0:02:03.4]}
22... Bxd5 {[%clk 0:02:24.5]} 23. exd5 {[%clk 0:01:38.5]} 23... Ne7 {[%clk
0:02:20.9]} 24. Bd7 {[%clk 0:01:11.7]} 24... axb3 {[%clk 0:02:17.4]} 25. axb3
{[%clk 0:01:13.6]} 25... f5 {[%clk 0:02:03.8]} 26. Ra1 {[%clk 0:01:04.8]} 26...
e4 {[%clk 0:02:02.2]} 27. Qd1 {[%clk 0:00:56.7]} 27... Rxa1 {[%clk 0:02:02.1]}
28. Qxa1 {[%clk 0:00:57.4]} 28... Be5 {[%clk 0:01:57.2]} 29. Qa5 {[%clk
0:00:50.5]} 29... Ng6 {[%clk 0:01:56.3]} 30. Qxb4 {[%clk 0:00:32.4]} 30... Nf4+
{[%clk 0:01:55.4]} 31. Kf1 {[%clk 0:00:32.7]} 31... Qc7 {[%clk 0:01:25.3]} 32.
Qa4 {[%clk 0:00:28.6]} 32... Nd3 {[%clk 0:01:16.7]} 33. Bc6 {[%clk 0:00:09.2]}
33... Qb6 {[%clk 0:01:12.1]} 34. Ne3 {[%clk 0:00:10.3]} 34... Bd4 {[%clk
0:00:31.2]} 35. Nd1 {[%clk 0:00:09.3]} 35... Bxf2 {[%clk 0:00:29.4]} 36. Rh2
{[%clk 0:00:05.1]} 36... Bg3 {[%clk 0:00:25.4]} 37. Rg2 {[%clk 0:00:04.8]} 37...
Bxh4 {[%clk 0:00:24]} 38. g6 {[%clk 0:00:05.6]} 38... Qd4 {[%clk 0:00:20.8]} 39.
Qa2 {[%clk 0:00:06.1]} 39... e3 {[%clk 0:00:20.6]} 40. Qe2 {[%clk 0:00:06.9]}
40... Nf4 {[%clk 0:00:20.3]} 41. Qf3 {[%clk 0:00:06.3]} 41... e2+ {[%clk
0:00:20]} 42. Rxe2 {[%clk 0:00:06.8]} 42... Qxd1+ {[%clk 0:00:21]} 0-1

[Event "*** Titled Tuesday Blitz"]
[Site "Chess.com"]
[Date "2019.03.05"]
[Round "2"]
[White "PulpanJ"]
[Black "Caterpiller35"]
[Result "1-0"]
[WhiteElo "2670"]
[BlackElo "2327"]
[TimeControl "180+2"]
[EndTime "13:24:15 PST"]
[Termination "PulpanJ won by resignation"]

1. e4 {[%clk 0:02:02.4]} 1... c5 {[%clk 0:02:59.7]} 2. Nf3 {[%clk 0:02:01.8]}
2... g6 {[%clk 0:03:00]} 3. c3 {[%clk 0:01:59.7]} 3... Bg7 {[%clk 0:03:00.3]} 4.
d4 {[%clk 0:02:00.1]} 4... cxd4 {[%clk 0:03:02.2]} 5. cxd4 {[%clk 0:02:02]} 5...
d5 {[%clk 0:03:03.3]} 6. e5 {[%clk 0:02:02.4]} 6... Bg4 {[%clk 0:03:03.9]} 7.
Bb5+ {[%clk 0:02:01.6]} 7... Nd7 {[%clk 0:03:04.8]} 8. O-O {[%clk 0:02:00.9]}
8... e6 {[%clk 0:03:04.1]} 9. Nbd2 {[%clk 0:02:00.4]} 9... Ne7 {[%clk
0:03:03.5]} 10. h3 {[%clk 0:01:59.9]} 10... Bxf3 {[%clk 0:03:04.4]} 11. Nxf3
{[%clk 0:02:01.8]} 11... a6 {[%clk 0:03:03.8]} 12. Bd3 {[%clk 0:02:01.8]} 12...
O-O {[%clk 0:03:02.9]} 13. Bg5 {[%clk 0:01:59.9]} 13... Rc8 {[%clk 0:02:42]} 14.
Qd2 {[%clk 0:01:55.1]} 14... f6 {[%clk 0:02:35.7]} 15. exf6 {[%clk 0:01:57]}
15... Bxf6 {[%clk 0:02:36.8]} 16. Bxf6 {[%clk 0:01:56.8]} 16... Rxf6 {[%clk
0:02:38.7]} 17. Rfe1 {[%clk 0:01:58.1]} 17... Nc6 {[%clk 0:02:28.7]} 18. Re3
{[%clk 0:01:46]} 18... Qb6 {[%clk 0:02:23.7]} 19. Bf1 {[%clk 0:01:28.6]} 19...
Rcf8 {[%clk 0:02:17.6]} 20. Rae1 {[%clk 0:01:26.2]} 20... Rxf3 {[%clk
0:01:27.3]} 21. Rxf3 {[%clk 0:01:26.6]} 21... Rxf3 {[%clk 0:01:27.1]} 22. gxf3
{[%clk 0:01:28.5]} 22... Nxd4 {[%clk 0:01:23]} 23. Bg2 {[%clk 0:01:24]} 23...
Nf6 {[%clk 0:01:05.7]} 24. Qe3 {[%clk 0:01:18.9]} 24... Qxb2 {[%clk 0:01:06.6]}
25. Rd1 {[%clk 0:01:14.1]} 25... e5 {[%clk 0:00:32.8]} 26. Kh1 {[%clk
0:01:05.7]} 26... Qe2 {[%clk 0:00:26.8]} 27. Qxe2 {[%clk 0:01:01.4]} 27... Nxe2
{[%clk 0:00:28.7]} 28. Re1 {[%clk 0:01:03.3]} 28... Nc3 {[%clk 0:00:25.9]} 29.
Rxe5 {[%clk 0:01:01.2]} 29... Nxa2 {[%clk 0:00:26.9]} 30. f4 {[%clk 0:00:57.9]}
30... Nc3 {[%clk 0:00:26.1]} 31. Re3 {[%clk 0:00:56.8]} 31... d4 {[%clk
0:00:26.1]} 32. Rd3 {[%clk 0:00:58.3]} 32... b5 {[%clk 0:00:20]} 33. Rxd4 {[%clk
0:00:58.2]} 33... Ne2 {[%clk 0:00:21.1]} 34. Rd6 {[%clk 0:00:59.1]} 34... Nh5
{[%clk 0:00:19.3]} 35. Rxa6 {[%clk 0:00:58.5]} 35... Nhxf4 {[%clk 0:00:18.9]}
36. Rb6 {[%clk 0:01:00]} 36... Nxg2 {[%clk 0:00:19.2]} 37. Kxg2 {[%clk
0:01:01.9]} 37... Nc3 {[%clk 0:00:20.2]} 38. Rc6 {[%clk 0:01:02.4]} 38... b4
{[%clk 0:00:21.3]} 39. Rb6 {[%clk 0:01:00.7]} 39... Nd5 {[%clk 0:00:21.5]} 40.
Rb5 {[%clk 0:01:01.6]} 40... Nf4+ {[%clk 0:00:21]} 41. Kg3 {[%clk 0:01:01.5]}
41... Nd3 {[%clk 0:00:22.1]} 42. Kf3 {[%clk 0:01:01.1]} 42... Kg7 {[%clk
0:00:21.7]} 43. Ke3 {[%clk 0:01:01.9]} 43... Ne1 {[%clk 0:00:19.9]} 44. Kd2
{[%clk 0:01:02]} 44... Nf3+ {[%clk 0:00:20.6]} 45. Ke3 {[%clk 0:01:03.2]} 45...
Nh4 {[%clk 0:00:20.8]} 46. Rxb4 {[%clk 0:01:03.4]} 46... Nf5+ {[%clk 0:00:21.9]}
47. Kf4 {[%clk 0:01:05.3]} 47... Kf6 {[%clk 0:00:21.4]} 48. Rb6+ {[%clk
0:01:05.1]} 48... Kg7 {[%clk 0:00:22.6]} 49. Kg5 {[%clk 0:01:01.9]} 49... h6+
{[%clk 0:00:23.7]} 50. Kf4 {[%clk 0:01:03]} 50... Ne7 {[%clk 0:00:24.2]} 51. Ke5
{[%clk 0:01:03]} 51... Nf5 {[%clk 0:00:23.8]} 52. Rb7+ {[%clk 0:01:03.6]} 52...
Kf8 {[%clk 0:00:24.3]} 53. Kf6 {[%clk 0:01:05.4]} 1-0